Workbook

Sheet Лист1
X1: дракон
B2: маг | C2: маг урон | D2: физ урон | E2: Бонусы | G2: асасин | K2: воин | O2: моб 1 | R2: моб2 | U2: моб3 | X2: 500 | Y2: 5
A3: Здоровье | B3: 60 | C3: 4 | D3: 1 | E3: 10 | G3: 60 | H3: 2 | I3: 10 | K3: 100 | L3: 2 | M3: 0 | O3: 50 | P3: 1 | R3: 100 | S3: 2 | U3: 200 | V3: 3 | X3: 15 | Y3: 10
A4: атака | B4: 2 | C4: 8 | D4: 2 | E4: 2 | G4: 7 | H4: 4 | I4: 2 | K4: 5 | L4: 4 | M4: 10 | O4: 5 | P4: 2 | R4: 8 | S4: 3 | U4: 10 | V4: 5 | X4: 15 | Y4: 15
A5: защита | B5: 2 | C5: 12 | D5: 3 | E5: 0 | G5: 3 | H5: 6 | I5: 1 | K5: 5 | L5: 6 | M5: 11 | O5: 5 | P5: 3 | R5: 8 | S5: 5 | U5: 10 | V5: 7 | X5: 0 | Y5: 20
A6: СП | B6: 5 | C6: 16 | D6: 4 | E6: 1 | G6: 0 | H6: 8 | I6: 0 | K6: 0 | L6: 8 | M6: 0 | P6: 4 | S6: 6 | V6: 9 | Y6: 25
A7: знания | B7: 5 | C7: 20 | D7: 5 | E7: 0 | G7: 0 | H7: 10 | I7: 0 | K7: 0 | L7: 10 | M7: 0 | P7: 5 | S7: 8 | V7: 12 | X7: 2 | Y7: 30
A8: горение | B8: 2 | C8: 24 | D8: 6 | H8: 12 | L8: 12 | P8: 6 | S8: 10 | V8: 15
A12: урон | B12: 1 | C12: =C3*(1+($B$6+$E$6)*0.1)+$B$8 -> 8.4 | D12: =D3*(1+($B$4+$E$4)*0.1) -> 1.4 | H12: =H3*(1+($G$4+$I$4)*0.1) -> 3.8 | L12: =L3*(1+($K$4+$M$4)*0.1) -> 5 | P12: =P3+(1+$O$4*0.1) -> 2.5 | S12: =S3+(1+$R$4*0.1) -> 3.8 | V12: =V3+(1+$U$4*0.1) -> 5 | X12: =Y2+(Y2*($X$3*0.05)) -> 8.75
B13: 2 | C13: =C4*(1+($B$6+$E$6)*0.1)+$B$8 -> 14.8 | D13: =D4*(1+($B$4+$E$4)*0.1) -> 2.8 | H13: =H4*(1+($G$4+$I$4)*0.1) -> 7.6 | L13: =L4*(1+($K$4+$M$4)*0.1) -> 10 | P13: =P4+(1+$O$4*0.1) -> 3.5 | S13: =S4+(1+$R$4*0.1) -> 4.8 | V13: =V4+(1+$U$4*0.1) -> 7 | X13: =Y3+(Y3*($X$3*0.05)) -> 17.5
B14: 3 | C14: 21.2 | D14: 4.2 | H14: 11.4 | L14: 15 | P14: 4.5 | S14: 6.8 | V14: 9 | X14: 26.25
B15: 4 | C15: 27.6 | D15: 5.6 | H15: 15.2 | L15: 20 | P15: 5.5 | S15: 7.8 | V15: 11 | X15: 35
B16: 5 | C16: 34 | D16: 7 | H16: 19 | L16: 25 | P16: 6.5 | S16: 9.8 | V16: 14 | X16: 43.75
B17: 6 | C17: 40.4 | D17: 8.4 | H17: =(H8*(1+($G$4+$I$4)*0.1))*2 -> 45.6 | L17: 30 | P17: 7.5 | S17: 11.8 | V17: 17 | X17: 52.5
A22: бой | B22: маг | C22: от Асасина | D22: от Воина | E22: Дракона | G22: ассаин | H22: от мага Маг | I22: от мага Физ | J22: от воина | K22: Дракона | O22: воин | P22: от мага Маг | Q22: от мага Физ | R22: от асасина | S22: от Дракона
A23: Здоровье | B23: =B3+$E$3 -> 70 | C23: =H12-(H12*(($B$5+$E$5)*0.5/10)) -> 3.42 | D23: =L12-(L12*(($B$5+$E$5)*0.5/10)) -> 4.5 | E23: =X12-(X12*(($B$5+$E$5)*0.5/10)) -> 7.875 | G23: =I3+$G$3 -> 70 | H23: =C12-(C12*(($G$5+$I$5)*0.5/10)) -> 6.72 | I23: =D12-(D12*(($G$5+$I$5)*0.5/10)) -> 1.12 | J23: =L12-(L12*(($G$5+$I$5)*0.5/10)) -> 4 | K23: =X12-(X12*(($G$5+$I$5)*0.5/10)) -> 7 | O23: =M3+$K$3 -> 100 | P23: =C12-(C12*(($K$5+$M$5)*0.5/10)) -> 1.68 | Q23: =D12-(D12*(($K$5+$M$5)*0.5/10)) -> 0.28 | R23: =H12-(H12*(($K$5+$M$5)*0.5/10)) -> 0.76 | S23: =X12-(X12*(($K$5+$M$5)*0.5/10)) -> 1.75
A24: мана | B24: =($B$7+$E$7)*10 -> 50 | C24: =H13-(H13*(($B$5+$E$5)*0.5/10)) -> 6.84 | D24: =L13-(L13*(($B$5+$E$5)*0.5/10)) -> 9 | E24: =X13-(X13*(($B$5+$E$5)*0.5/10)) -> 15.75 | H24: =C13-(C13*(($G$5+$I$5)*0.5/10)) -> 11.84 | I24: =D13-(D13*(($G$5+$I$5)*0.5/10)) -> 2.24 | J24: =L13-(L13*(($G$5+$I$5)*0.5/10)) -> 8 | K24: =X13-(X13*(($G$5+$I$5)*0.5/10)) -> 14 | P24: =C13-(C13*(($K$5+$M$5)*0.5/10)) -> 2.96 | Q24: =D13-(D13*(($K$5+$M$5)*0.5/10)) -> 0.56 | R24: =H13-(H13*(($K$5+$M$5)*0.5/10)) -> 1.52 | S24: =X13-(X13*(($K$5+$M$5)*0.5/10)) -> 3.5
C25: 10.26 | D25: 13.5 | E25: 23.625 | H25: 16.96 | I25: 3.36 | J25: 12 | K25: 21 | P25: 4.24 | Q25: 0.84 | R25: 2.28 | S25: 5.25
C26: 13.68 | D26: 18 | E26: 31.5 | H26: 22.08 | I26: 4.48 | J26: 16 | K26: 28 | P26: 5.52 | Q26: 1.12 | R26: 3.04 | S26: 7
C27: 17.1 | D27: 22.5 | E27: 39.375 | H27: 0 | I27: 0 | J27: 0 | K27: 0 | P27: 6.8 | Q27: 1.4 | R27: 3.8 | S27: 8.75
C28: 41.04 | D28: 27 | E28: 47.25 | H28: 32.32 | I28: 6.72 | J28: 24 | K28: 42 | P28: 8.08 | Q28: 1.68 | R28: 9.12 | S28: 10.5
C30: от моб1 | D30: моб2 | E30: моб3 | F30: дракон | H30: моб1 | I30: моб2 | J30: моб3 | K30: дракон | P30: моб1 | Q30: моб2 | R30: моб3 | S30: дракон
C31: =P3-(P3*(($B$5+$E$5)*0.5/10)) -> 0.9 | D31: =S3-(S3*(($B$5+$E$5)*0.5/10)) -> 1.8 | E31: =V3-(V3*(($B$5+$E$5)*0.5/10)) -> 2.7 | H31: =P3-(P3*(($G$5+$I$5)*0.5/10)) -> 0.8 | I31: =S3-(S3*(($G$5+$I$5)*0.5/10)) -> 1.6 | J31: =V3-(V3*(($G$5+$I$5)*0.5/10)) -> 2.4 | P31: =P3-(P3*(($K$5+$M$5)*0.5/10)) -> 0.2 | Q31: =S3-(S3*(($K$5+$M$5)*0.5/10)) -> 0.4 | R31: =V3-(V3*(($K$5+$M$5)*0.5/10)) -> 0.6
C32: =P4-(P4*(($B$5+$E$5)*0.5/10)) -> 1.8 | D32: =S4-(S4*(($B$5+$E$5)*0.5/10)) -> 2.7 | E32: =V4-(V4*(($B$5+$E$5)*0.5/10)) -> 4.5 | H32: =P4-(P4*(($G$5+$I$5)*0.5/10)) -> 1.6 | I32: =S4-(S4*(($G$5+$I$5)*0.5/10)) -> 2.4 | J32: =V4-(V4*(($G$5+$I$5)*0.5/10)) -> 4 | P32: =P4-(P4*(($K$5+$M$5)*0.5/10)) -> 0.4 | Q32: =S4-(S4*(($K$5+$M$5)*0.5/10)) -> 0.6 | R32: =V4-(V4*(($K$5+$M$5)*0.5/10)) -> 1
C33: 2.7 | D33: 4.5 | E33: 6.3 | H33: 2.4 | I33: 4 | J33: 5.6 | P33: 0.6 | Q33: 1 | R33: 1.4
C34: 3.6 | D34: 5.4 | E34: 8.1 | H34: 3.2 | I34: 4.8 | J34: 7.2 | P34: 0.8 | Q34: 1.2 | R34: 1.8
C35: 4.5 | D35: 7.2 | E35: 10.8 | H35: 0 | I35: 0 | J35: 0 | P35: 1 | Q35: 1.6 | R35: 2.4
C36: 5.4 | D36: 9 | E36: 13.5 | H36: 4.8 | I36: 8 | J36: 12 | P36: 1.2 | Q36: 2 | R36: 3
B38: по мобу 1 | C38: от мага Маг | D38: от мага Физ | E38: от воина | F38: от асасина | G38: по мобу 2 | H38: от мага Маг | I38: от мага Физ | J38: от воина | K38: от асасина | O38: по мобу 3 | P38: от мага Маг | Q38: от мага Физ | R38: от воина | S38: от асасина
C39: =C12-(C12*(($O$5+$Q$5)*0.5/10)) -> 6.3 | D39: =D12-(D12*(($O$5+$Q$5)*0.5/10)) -> 1.05 | E39: =P12-(P12*(($O$5+$Q$5)*0.5/10)) -> 1.875 | F39: =H12-(H12*(($G$5+$I$5)*0.5/10)) -> 3.04 | H39: =C12-(C12*(($R$5+$T$5)*0.5/10)) -> 5.04 | I39: =D12-(D12*(($R$5+$T$5)*0.5/10)) -> 0.84 | J39: =L12-(L12*(($R$5+$T$5)*0.5/10)) -> 3 | K39: =H12-(H12*(($R$5+$T$5)*0.5/10)) -> 2.28 | P39: =C12-(C12*(($U$5+$W$5)*0.5/10)) -> 4.2 | Q39: =D12-(D12*(($U$5+$W$5)*0.5/10)) -> 0.7 | R39: =L12-(L12*(($U$5+$W$5)*0.5/10)) -> 2.5 | S39: =H12-(H12*(($U$5+$W$5)*0.5/10)) -> 1.9
C40: 11.1 | D40: 2.1 | E40: =P13-(P13*(($O$5+$Q$5)*0.5/10)) -> 2.625 | F40: =H13-(H13*(($G$5+$I$5)*0.5/10)) -> 6.08 | H40: =C13-(C13*(($R$5+$T$5)*0.5/10)) -> 8.88 | I40: 1.68 | J40: =L13-(L13*(($R$5+$T$5)*0.5/10)) -> 6 | K40: =H13-(H13*(($R$5+$T$5)*0.5/10)) -> 4.56 | P40: =C13-(C13*(($U$5+$W$5)*0.5/10)) -> 7.4 | Q40: =D13-(D13*(($U$5+$W$5)*0.5/10)) -> 1.4 | R40: =L13-(L13*(($U$5+$W$5)*0.5/10)) -> 5 | S40: =H13-(H13*(($U$5+$W$5)*0.5/10)) -> 3.8
C41: =C14-(C14*(($O$5+$Q$5)*0.5/10)) -> 15.9 | D41: 3.15 | E41: 3.375 | F41: 9.12 | H41: =C14-(C14*(($R$5+$T$5)*0.5/10)) -> 12.72 | I41: 2.52 | J41: 9 | K41: 6.84 | P41: =C14-(C14*(($U$5+$W$5)*0.5/10)) -> 10.6 | Q41: =D14-(D14*(($U$5+$W$5)*0.5/10)) -> 2.1 | R41: =L14-(L14*(($U$5+$W$5)*0.5/10)) -> 7.5 | S41: =H14-(H14*(($U$5+$W$5)*0.5/10)) -> 5.7
C42: =C15-(C15*(($O$5+$Q$5)*0.5/10)) -> 20.7 | D42: 4.2 | E42: 4.125 | F42: 12.16 | H42: =C15-(C15*(($R$5+$T$5)*0.5/10)) -> 16.56 | I42: 3.36 | J42: 12 | K42: 9.12 | P42: =C15-(C15*(($U$5+$W$5)*0.5/10)) -> 13.8 | Q42: =D15-(D15*(($U$5+$W$5)*0.5/10)) -> 2.8 | R42: =L15-(L15*(($U$5+$W$5)*0.5/10)) -> 10 | S42: =H15-(H15*(($U$5+$W$5)*0.5/10)) -> 7.6
C43: =C16-(C16*(($O$5+$Q$5)*0.5/10)) -> 25.5 | D43: 5.25 | E43: 4.875 | F43: 15.2 | H43: =C16-(C16*(($R$5+$T$5)*0.5/10)) -> 20.4 | I43: 4.2 | J43: 15 | K43: 11.4 | P43: =C16-(C16*(($U$5+$W$5)*0.5/10)) -> 17 | Q43: =D16-(D16*(($U$5+$W$5)*0.5/10)) -> 3.5 | R43: =L16-(L16*(($U$5+$W$5)*0.5/10)) -> 12.5 | S43: =H16-(H16*(($U$5+$W$5)*0.5/10)) -> 9.5
C44: =C17-(C17*(($O$5+$Q$5)*0.5/10)) -> 30.3 | D44: 6.3 | E44: 5.625 | F44: 36.48 | H44: =C17-(C17*(($R$5+$T$5)*0.5/10)) -> 24.24 | I44: 5.04 | J44: 18 | K44: 27.36 | P44: =C17-(C17*(($U$5+$W$5)*0.5/10)) -> 20.2 | Q44: =D17-(D17*(($U$5+$W$5)*0.5/10)) -> 4.2 | R44: =L17-(L17*(($U$5+$W$5)*0.5/10)) -> 15 | S44: =H17-(H17*(($U$5+$W$5)*0.5/10)) -> 22.8
